{"text_format":"1","workbook":"xlsx","n_sheets":4,"sheets":["Fragebogen","Zusatzblatt","Übersetzung","Intern"],"not_rendered":{"charts":0,"images":63,"macros":1,"external_links":0,"defined_names":16,"comments":0,"pivot_tables":0},"unopened":[],"bounds":{"document_bytes":16777216,"sheet_cells":100000,"rows_first":2000,"rows_last":500,"rows_between":2000,"halvings":0,"cell_chars":16384,"cell_head_chars":4096},"cells_cut":0,"cells_raw":0,"read":"whole","date_system":"1900"}

{"sheet":"Fragebogen","index":0,"n_rows":163,"n_cols":22,"rows_kept":163,"cut":false,"hidden":false,"merged":[[21,21,23,25],[162,12,162,16],[122,6,124,14],[116,13,116,14],[153,6,153,15],[97,8,98,12],[103,11,103,12],[157,1,162,8],[159,12,159,14],[147,11,149,15],[82,7,82,8],[86,7,86,8],[87,7,87,8],[88,7,88,8],[89,7,89,8],[111,13,111,14],[79,7,79,8],[52,1,52,5],[52,6,52,16],[40,6,40,16],[99,1,99,2],[96,3,96,4],[97,3,97,4],[53,6,53,16],[53,1,53,5],[27,1,27,5],[28,1,28,5],[29,1,29,5],[30,1,30,5],[29,6,29,16],[30,6,30,16],[31,6,31,16],[34,1,34,5],[62,2,62,8],[70,7,70,8],[103,7,103,8],[75,7,75,8],[76,7,76,8],[74,7,74,8],[72,7,72,8],[71,7,71,8],[80,7,80,8],[81,7,81,8],[98,3,98,4],[99,3,99,4],[35,6,35,16],[33,1,33,5],[20,1,21,16],[51,1,51,5],[51,6,51,16],[35,1,35,5],[46,14,46,16],[39,1,39,5],[39,6,39,16],[40,1,40,5],[31,1,31,5],[32,1,32,5],[32,6,32,16],[33,6,33,16],[34,6,34,16],[22,2,24,15],[27,6,27,16],[28,6,28,16]]}
[]
[]
[]
[]
[]
[]
[]
[]
[]
[]
[]
[null,null,null,null,null,null,null,null,null,null,null,null,null,null,null,null,null,null,null,{"$f":"Übersetzung!B132","v":"Sprachauswahl"}]
[]
[]
[null,"ED-ENERGY Germany GmbH"]
[null,"Zwieseler Strasse 164"]
[null,"D - 10318 Berlin",null,null,null,null,null,null,null,null,{"$f":"Übersetzung!B10&\" \"","v":"Ansprechpartner: "}]
[null,{"$f":"Übersetzung!B4","v":"Telefon:"},null," +49 (0) 30 - 501 735 62"]
[null,{"$f":"Übersetzung!B5","v":"Telefax:"},null," +49 (0) 30 - 501 735 63"]
[null,{"$f":"Übersetzung!B6","v":"eMail:"},null,"info@ed-energy.de",null,null,null,null,null,null,null,null,null,null,null,null,null,null,null,null,null,{"$f":"Übersetzung!B133","v":"Anfrage ausdrucken"}]
[null,{"$f":"Übersetzung!B7","v":"Angebotsfragebogen"}]
[null,null,null,null,null,null,null,null,null,null,null,null,null,null,null,null,null,null,null,null,null,{"$f":"Übersetzung!B135","v":"Zusatzblatt für weitere Angaben, Wünsche und Anforderungen"}]
[null,null,{"$f":"Übersetzung!B8","v":"Gerne erstellen wir für Sie ein Angebot. Um Ihre Anforderungen an das Angebot optimal berücksichtigen zu können, bitten wir Sie um folgende (möglichst vollständige) Angaben:     "}]
[]
[]
[null,{"$f":"Übersetzung!B18","v":"Ihre Adresse"}]
[]
[null,{"$f":"Übersetzung!B9","v":"Firma:"}]
[null,{"$f":"Übersetzung!B10","v":"Ansprechpartner:"}]
[null,{"$f":"Übersetzung!B11","v":"Straße:"}]
[null,{"$f":"Übersetzung!B12","v":"PLZ, Ort:"}]
[null,{"$f":"Übersetzung!B13","v":"Land:"}]
[null,{"$f":"Übersetzung!B14","v":"Telefonnummer mit Vorwahl:"}]
[null,{"$f":"Übersetzung!B15","v":"Telefaxnummer mit Vorwahl:"}]
[null,{"$f":"Übersetzung!B16","v":"eMail:"}]
[null,{"$f":"Übersetzung!B17","v":"Branche:"}]
[]
[null,{"$f":"Übersetzung!B19","v":"Weitere Projektbeteiligte"}]
[]
[null,{"$f":"Übersetzung!B20","v":"Name und Adresse des Käufers:"}]
[null,{"$f":"Übersetzung!B21","v":"Name und Adresse des Endkunden/Betreibers:"}]
[]
[null,{"$f":"Übersetzung!B22","v":"Projektstatus"}]
[]
[null,null,{"$f":"Übersetzung!B23","v":"Studie"},null,null,null,null,{"$f":"Übersetzung!B27","v":"Definitive Realisierung"},null,null,null,null,{"$f":"Übersetzung!B29","v":"Ja"},null,null,{"$f":"Übersetzung!B30","v":"Nein"}]
[null,null,{"$f":"Übersetzung!B24","v":"Budgetplanung"}]
[null,null,{"$f":"Übersetzung!B25","v":"Vorplanung"},null,null,null,null,null,null,null,null,null,null,{"$f":"Übersetzung!B28&\": \"","v":"Vorgesehener Zeitpunkt der Realisierung: "}]
[null,null,{"$f":"Übersetzung!B26","v":"Ausführungsplanung"}]
[]
[null,{"$f":"Übersetzung!B48","v":"Projektzuordnung"}]
[]
[null,{"$f":"Übersetzung!B49","v":"Projektname / Kennwort:"}]
[null,{"$f":"Übersetzung!B50","v":"Ihre Projekt-Nr.:"}]
[null,{"$f":"Übersetzung!B47","v":"Aufstellungsort der Anlage            (Land / Adresse)"}]
[]
[null,{"$f":"Übersetzung!B39","v":"Art des Objektes"}]
[]
[null,null,{"$f":"Übersetzung!B34","v":"Industrie"},null,null,null,{"$f":"Übersetzung!B51","v":"Nahwärme"},null,null,null,{"$f":"Übersetzung!B41","v":"Neubau"},null,null,null,{"$f":"Übersetzung!B45","v":"Gewerbegebiet"}]
[null,null,{"$f":"Übersetzung!B35","v":"Verwaltung"},null,null,null,{"$f":"Übersetzung!B52","v":"Deponie"},null,null,null,{"$f":"Übersetzung!B42","v":"Altbausanierung"},null,null,null,{"$f":"Übersetzung!B46","v":"Wohngebiet"}]
[null,null,{"$f":"Übersetzung!B36","v":"Wohnbebauung"},null,null,null,{"$f":"Übersetzung!B53","v":"Kläranlage"}]
[null,null,{"$f":"Übersetzung!B37","v":"Krankenhaus"},null,null,null,{"$f":"Übersetzung!B54","v":"Gewächshaus"},null,null,null,null,null,null,null,null,{"$f":"Übersetzung!B29","v":"Ja"},{"$f":"Übersetzung!B30","v":"Nein"}]
[null,null,{"$f":"Übersetzung!B38","v":"Bäder"},null,null,null,{"$f":"Übersetzung!B55","v":"Grube"},null,null,null,{"$f":"Übersetzung!B43","v":"Maschinenraum vorhanden:"}]
[null,null,"?",null,null,null,null,null,null,null,{"$f":"Übersetzung!B44","v":"Aufstellung in Container:"}]
[null,{"$f":"Übersetzung!B31","v":"Anlagenart"}]
[]
[null,null,{"$f":"Übersetzung!B32","v":"Blockheizkraftwerk (mit Abwärmenutzung)"}]
[null,null,{"$f":"Übersetzung!B33","v":"Generator-Aggregat (nur Stromerzeugung)"}]
[]
[null,{"$f":"Übersetzung!D56","v":"Power and heat demand"}]
[]
[null,{"$f":"Übersetzung!B57","v":"Benötigte elektrische Leistung"},null,null,null,null,null,null,null,"kW",null,{"$f":"Übersetzung!B59","v":"Priorität:"},null,null,{"$f":"Übersetzung!B60","v":"Strom"}]
[null,{"$f":"Übersetzung!B62","v":"Spannungsebene der Einspeisung"},null,null,null,null,null,null,null,"V",null,null,null,null,{"$f":"Übersetzung!B61","v":"Wärme"}]
[null,{"$f":"Übersetzung!B63","v":"Frequenz des Stromnetzes"},null,null,null,null,null,null,null,"Hz"]
[]
[null,{"$f":"Übersetzung!B58","v":"Benötigte Wärmeleistung"},null,null,null,null,null,null,null,"kW"]
[null,{"$f":"Übersetzung!B64","v":"Max. Rücklauftemperatur (Heiznetz)"},null,null,null,null,null,null,null,"°C"]
[null,{"$f":"Übersetzung!B65","v":"Max. Vorlauftemperatur (Heiznetz)"},null,null,null,null,null,null,null,"°C"]
[]
[null,{"$f":"Übersetzung!B66","v":"Angaben bei Dampfbedarf:"}]
[null,{"$f":"Übersetzung!B67","v":"Benötigte Sattdampfmenge"},null,null,null,null,null,null,null,"kg/h"]
[null,{"$f":"Übersetzung!B68","v":"Sattdampfdruck (abs.)"},null,null,null,null,null,null,null,"bar"]
[null,{"$f":"Übersetzung!B69","v":"Sattdampftemperatur"},null,null,null,null,null,null,null,"°C"]
[null,{"$f":"Übersetzung!B70","v":"Speisewassertemperatur"},null,null,null,null,null,null,null,"°C"]
[]
[null,{"$f":"Übersetzung!B71","v":"Aufstellbedingungen und Betriebsweise"}]
[]
[null,{"$f":"Übersetzung!B72","v":"Aufstellhöhe"},null,null,null,null,null,null,null,{"$f":"Übersetzung!B140","v":"m.ü.NN"}]
[null,{"$f":"Übersetzung!B73","v":"Umgebungstemperatur"},null,null,null,null,null,null,null,"°C"]
[null,{"$f":"Übersetzung!B74","v":"Maschinenraumtemperatur"},null,null,null,null,null,null,null,"°C"]
[null,{"$f":"Übersetzung!B75","v":"Relative Luftfeuchte"},null,null,null,null,null,null,null,"%"]
[]
[null,{"$f":"Übersetzung!B76","v":"Zulässige Abgasemissionen:"}]
[null,null,{"$f":"Übersetzung!B77","v":"gemäß aktueller TA-Luft"}]
[null,null,{"$f":"Übersetzung!B83","v":"(Deutschland)"}]
[]
[null,{"$f":"Übersetzung!B78","v":"oder abweichend:"}]
[null,{"$f":"Übersetzung!B79","v":"NOx"},null,null,null,"mg/mn³"]
[null,{"$f":"Übersetzung!B80","v":"CO"},null,null,null,"mg/mn³",null,null,{"$f":"Übersetzung!B82","v":"Werte beziehen sich auf trockenes Abgas und 5% O2"}]
[null,{"$f":"Übersetzung!B81","v":"NMHC"},null,null,null,"mg/mn³"]
[null,"?",null,null,null,"mg/mn³"]
[]
[null,{"$f":"Übersetzung!B84","v":"Zulässige Schallemissionen:"}]
[]
[null,{"$f":"Übersetzung!B85","v":"Max. zulässiger Schalldruckpegel"},null,null,null,null,null,null,null,"dB(A)",{"$f":"Übersetzung!B86","v":"in"},null,null,{"$f":"Übersetzung!B87","v":"Meter"}]
[]
[null,{"$f":"Übersetzung!B88","v":"Betriebsart:"}]
[]
[null,null,{"$f":"Übersetzung!B89","v":"Netzparallelbetrieb"}]
[null,null,{"$f":"Übersetzung!B90","v":"Inselbetrieb"}]
[null,null,{"$f":"Übersetzung!B91","v":"Ersatzstrombetrieb"}]
[]
[null,null,{"$f":"Übersetzung!B92","v":"Bei Ersatzstrombetrieb: max. größter aufzuschaltender Verbraucher"},null,null,null,null,null,null,null,null,null,null,null,null,"kW"]
[null,null,{"$f":"Übersetzung!B93","v":"(Bitte Aufschaltleistung angeben - nicht Nennleistung)"}]
[]
[null,{"$f":"Übersetzung!B94","v":"Brenngas"}]
[]
[null,null,{"$f":"Übersetzung!B95","v":"Erdgas mit MZ 70"},null,null,null,null,null,null,null,null,null,{"$f":"Übersetzung!B106&\" \"","v":"Gasfließdruck: "},null,null,"mbar"]
[null,null,{"$f":"Übersetzung!B96","v":"Erdgas mit MZ 80"}]
[null,null,{"$f":"Übersetzung!B97","v":"Erdgas mit MZ 90"},null,null,null,null,null,null,null,null,null,{"$f":"Übersetzung!B107&\" \"","v":"Zweigasbetrieb: "}]
[null,null,{"$f":"Übersetzung!B98","v":"Deponiegas (50% CH4, 27% CO2, Rest N2)"}]
[null,null,{"$f":"Übersetzung!B99","v":"Klärgas (65% CH4, 35% CO2)"}]
[null,null,{"$f":"Übersetzung!B100","v":"Biogas"}]
[null,null,{"$f":"Übersetzung!B101","v":"Grubengas"},null,null,null,{"$f":"Übersetzung!B105","v":"Bitte unbedingt Gasanalyse bzw. Gaszusammensetzung der Anfrage beifügen oder im folgenden Feld eintragen!"}]
[null,null,{"$f":"Übersetzung!B102","v":"Kokereigas"}]
[null,null,{"$f":"Übersetzung!B103","v":"Erdölbegleitgas"}]
[null,null,{"$f":"Übersetzung!B104","v":"Sonstiges Gas"}]
[]
[null,{"$f":"Übersetzung!B126","v":"Gaszusammensetzung:"}]
[]
[]
[]
[]
[]
[]
[]
[]
[null,{"$f":"Übersetzung!B108","v":"Liefer- und Leistungsumfang"}]
[]
[null,null,{"$f":"Übersetzung!B109","v":"Grundlieferumfang Aggregat inkl. TEM EVO Steuerung und Nulldruck-Gasregelstrecke"}]
[null,null,{"$f":"Übersetzung!B110","v":"Startanlage (Batterien / Druckluftanlage je nach Motortyp)"}]
[null,null,{"$f":"Übersetzung!B111","v":"Wärmeverwertung (Komponentenlieferung: Pumpen, Wärmetauscher, Tischkühler, Ventile und Geber)"}]
[null,null,{"$f":"Übersetzung!B112","v":"Abgassystem (Komponentenlieferung: Abgasschalldämpfer, Katalysator bei Bedarf, Geber)"}]
[null,null,{"$f":"Übersetzung!B113","v":"Schmierölanlage (Komponentenlieferung: Alt- und Frischöltank, Pumpe, Geber)"}]
[null,null,{"$f":"Übersetzung!B114","v":"Lüftungsanlage (Komponentenlieferung inkl. Montage)"}]
[null,null,{"$f":"Übersetzung!B115","v":"Containermontage"}]
[null,null,{"$f":"Übersetzung!B116","v":"Schaltanlage - Hilfsantriebeschrank"}]
[null,null,{"$f":"Übersetzung!B117","v":"Schaltanlage - Leistungsteil"},null,null,null,null,null,null,null,null,{"$f":"Übersetzung!B130","v":"Bemerkung:"}]
[null,null,{"$f":"Übersetzung!B118","v":"Schaltanlage - Zentrale Anlagensteuerung"},null,null,null,null,null,null,null,null,{"$f":"Übersetzung!B131","v":"Besondere Wünsche und Anforderungen bitte separat dieser Anfrage beifügen."}]
[null,null,{"$f":"Übersetzung!B119","v":"Rohrleitungsmontage und Isolierung"}]
[null,null,{"$f":"Übersetzung!B120","v":"Verkabelung von Leistungs- und Steuerkabel"}]
[null,null,{"$f":"Übersetzung!B123","v":"Seeverpackung"}]
[]
[null,null,{"$f":"Übersetzung!B121","v":"Lieferbedingungen:"},null,null,null,{"$f":"Übersetzung!B122","v":"ex-works"}]
[null,null,null,null,null,null,"?"]
[]
[null,{"$f":"Übersetzung!B124","v":"Schlussbemerkung"}]
[]
[null,{"$f":"Übersetzung!B125","v":"Bitte legen Sie dieser Anfrage eventuell verfügbare Gebäudepläne, RI-Schematas, Single Line Diagramme etc. bei. Wir können Ihnen dann ein entsprechend auf Ihre Erfordernisse optimiertes Angebot erstellen. Vielen Dank für Ihre Anfrage."},null,null,null,null,null,null,null,null,{"$f":"Übersetzung!B127","v":"Firmenstempel"}]
[]
[null,null,null,null,null,null,null,null,null,null,{"$f":"Übersetzung!B128","v":"Datum:"},null,{"$f":"TODAY()","v":"2013-10-30"}]
[null,null,null,null,null,null,null,null,null,null,null,null,null,null,null,null,null,null,null,null,null,{"$f":"Übersetzung!B134","v":"Zum Seitenanfang"}]
[]
[null,null,null,null,null,null,null,null,null,null,{"$f":"Übersetzung!B129","v":"Unterschrift:"}]

{"sheet":"Zusatzblatt","index":1,"n_rows":11,"n_cols":11,"rows_kept":11,"cut":false,"hidden":false,"merged":[]}
[]
[null,null,null,null,null,null,null,null,null,null,{"$f":"Übersetzung!B138","v":"Zum Fragebogen"}]
[null,"ED-ENERGY Germany GmbH"]
[null,"Zwieseler Strasse 164"]
[null,"D - 10318 Berlin"]
[null,{"$f":"Fragebogen!B18","v":"Telefon:"},{"$f":"Fragebogen!D18","v":" +49 (0) 30 - 501 735 62"},null,null,null,null,null,null,null,{"$f":"Übersetzung!B139","v":"Zusatzblatt ausdrucken"}]
[null,{"$f":"Fragebogen!B19","v":"Telefax:"},{"$f":"Fragebogen!D19","v":" +49 (0) 30 - 501 735 63"}]
[null,{"$f":"Fragebogen!B20","v":"eMail:"},{"$f":"Fragebogen!D20","v":"info@ed-energy.de"}]
[null,{"$f":"Übersetzung!B136","v":"Angebotsfragebogen - Zusatzblatt"}]
[]
[null,{"$f":"Übersetzung!B137","v":"Raum für weitere Informationen"}]

{"sheet":"Übersetzung","index":2,"n_rows":421,"n_cols":5,"rows_kept":421,"cut":false,"hidden":true,"merged":[]}
[]
[]
[null,{"$f":"IF(Intern!$A$5=1,C3,IF(Intern!$A$5=2,D3,E3))","v":"Deutsch"},"Deutsch","Englisch","Polnisch"]
[null,{"$f":"IF(Intern!$A$5=1,C4,IF(Intern!$A$5=2,D4,E4))","v":"Telefon:"},"Telefon:","Tel:","Tel.:"]
[null,{"$f":"IF(Intern!$A$5=1,C5,IF(Intern!$A$5=2,D5,E5))","v":"Telefax:"},"Telefax:","Fax:","Fax:"]
[null,{"$f":"IF(Intern!$A$5=1,C6,IF(Intern!$A$5=2,D6,E6))","v":"eMail:"},"eMail:","eMail:","e-mail:"]
[null,{"$f":"IF(Intern!$A$5=1,C7,IF(Intern!$A$5=2,D7,E7))","v":"Angebotsfragebogen"},"Angebotsfragebogen","Offer request form","Kwestionariusz zapytania ofertowego"]
[null,{"$f":"IF(Intern!$A$5=1,C8,IF(Intern!$A$5=2,D8,E8))","v":"Gerne erstellen wir für Sie ein Angebot. Um Ihre Anforderungen an das Angebot optimal berücksichtigen zu können, bitten wir Sie um folgende (möglichst vollständige) Angaben:     "},"Gerne erstellen wir für Sie ein Angebot. Um Ihre Anforderungen an das Angebot optimal berücksichtigen zu können, bitten wir Sie um folgende (möglichst vollständige) Angaben:     ","We are pleased to prepare an offer for you. In order to be able to optimise the offer to your needs, we kindly ask you to supply the following information (complete data when possible):","Chętnie przygotujemy dla Państwa ofertę. W celu optymalnego uwzględnienia Państwa wymagań prosimy o podanie następujących (możliwie pełnych) danych:"]
[null,{"$f":"IF(Intern!$A$5=1,C9,IF(Intern!$A$5=2,D9,E9))","v":"Firma:"},"Firma:","Company:","Fima:"]
[null,{"$f":"IF(Intern!$A$5=1,C10,IF(Intern!$A$5=2,D10,E10))","v":"Ansprechpartner:"},"Ansprechpartner:","Contact person:","Osoba kontaktowa:"]
[null,{"$f":"IF(Intern!$A$5=1,C11,IF(Intern!$A$5=2,D11,E11))","v":"Straße:"},"Straße:","Street:","Ulica:"]
[null,{"$f":"IF(Intern!$A$5=1,C12,IF(Intern!$A$5=2,D12,E12))","v":"PLZ, Ort:"},"PLZ, Ort:","Postcode:","Kod, miasto"]
[null,{"$f":"IF(Intern!$A$5=1,C13,IF(Intern!$A$5=2,D13,E13))","v":"Land:"},"Land:","Country:","Państwo:"]
[null,{"$f":"IF(Intern!$A$5=1,C14,IF(Intern!$A$5=2,D14,E14))","v":"Telefonnummer mit Vorwahl:"},"Telefonnummer mit Vorwahl:","Tel. number (with country code):","Nr telefonu z prefixem:"]
[null,{"$f":"IF(Intern!$A$5=1,C15,IF(Intern!$A$5=2,D15,E15))","v":"Telefaxnummer mit Vorwahl:"},"Telefaxnummer mit Vorwahl:","Fax number (with country code):","Nr faxu z prefixem:"]
[null,{"$f":"IF(Intern!$A$5=1,C16,IF(Intern!$A$5=2,D16,E16))","v":"eMail:"},"eMail:","eMail:","e-mail:"]
[null,{"$f":"IF(Intern!$A$5=1,C17,IF(Intern!$A$5=2,D17,E17))","v":"Branche:"},"Branche:","Branch:","Branża:"]
[null,{"$f":"IF(Intern!$A$5=1,C18,IF(Intern!$A$5=2,D18,E18))","v":"Ihre Adresse"},"Ihre Adresse","Your address","Państwa Adres"]
[null,{"$f":"IF(Intern!$A$5=1,C19,IF(Intern!$A$5=2,D19,E19))","v":"Weitere Projektbeteiligte"},"Weitere Projektbeteiligte","Other parties involved","Inni uczestnicy projektu"]
[null,{"$f":"IF(Intern!$A$5=1,C20,IF(Intern!$A$5=2,D20,E20))","v":"Name und Adresse des Käufers:"},"Name und Adresse des Käufers:","Name and address of customer company","Nazwa i adres kupującego:"]
[null,{"$f":"IF(Intern!$A$5=1,C21,IF(Intern!$A$5=2,D21,E21))","v":"Name und Adresse des Endkunden/Betreibers:"},"Name und Adresse des Endkunden/Betreibers:","Name and address of final customer /operating company","Nazwa i adres klienta końcowego/uzytkownika"]
[null,{"$f":"IF(Intern!$A$5=1,C22,IF(Intern!$A$5=2,D22,E22))","v":"Projektstatus"},"Projektstatus","Project status","Status projektu"]
[null,{"$f":"IF(Intern!$A$5=1,C23,IF(Intern!$A$5=2,D23,E23))","v":"Studie"},"Studie","Survey","Informacyjny"]
[null,{"$f":"IF(Intern!$A$5=1,C24,IF(Intern!$A$5=2,D24,E24))","v":"Budgetplanung"},"Budgetplanung","Budget planning","Planowanie budżetu"]
[null,{"$f":"IF(Intern!$A$5=1,C25,IF(Intern!$A$5=2,D25,E25))","v":"Vorplanung"},"Vorplanung","Preliminary planning","Planowanie wstępne"]
[null,{"$f":"IF(Intern!$A$5=1,C26,IF(Intern!$A$5=2,D26,E26))","v":"Ausführungsplanung"},"Ausführungsplanung","Implementation planning","Planowanie wykonawcze"]
[null,{"$f":"IF(Intern!$A$5=1,C27,IF(Intern!$A$5=2,D27,E27))","v":"Definitive Realisierung"},"Definitive Realisierung","Definitive execution","Całkowita realizacja"]
[null,{"$f":"IF(Intern!$A$5=1,C28,IF(Intern!$A$5=2,D28,E28))","v":"Vorgesehener Zeitpunkt der Realisierung"},"Vorgesehener Zeitpunkt der Realisierung","Intended execution date","Przewidywana data realizacji"]
[null,{"$f":"IF(Intern!$A$5=1,C29,IF(Intern!$A$5=2,D29,E29))","v":"Ja"},"Ja","Yes","Tak"]
[null,{"$f":"IF(Intern!$A$5=1,C30,IF(Intern!$A$5=2,D30,E30))","v":"Nein"},"Nein","No","Nie"]
[null,{"$f":"IF(Intern!$A$5=1,C31,IF(Intern!$A$5=2,D31,E31))","v":"Anlagenart"},"Anlagenart","Facility type","Typ urządzenia"]
[null,{"$f":"IF(Intern!$A$5=1,C32,IF(Intern!$A$5=2,D32,E32))","v":"Blockheizkraftwerk (mit Abwärmenutzung)"},"Blockheizkraftwerk (mit Abwärmenutzung)","CHP (with heat recovery)","Blok siłowniczo-ciepłowniczy (z odzyskiem ciepła)"]
[null,{"$f":"IF(Intern!$A$5=1,C33,IF(Intern!$A$5=2,D33,E33))","v":"Generator-Aggregat (nur Stromerzeugung)"},"Generator-Aggregat (nur Stromerzeugung)","Generator (only power production)","Generator-agregat (tylko produkcja energii elektrycznej)"]
[null,{"$f":"IF(Intern!$A$5=1,C34,IF(Intern!$A$5=2,D34,E34))","v":"Industrie"},"Industrie","Industry","Przemysł"]
[null,{"$f":"IF(Intern!$A$5=1,C35,IF(Intern!$A$5=2,D35,E35))","v":"Verwaltung"},"Verwaltung","Government estate","Administracja"]
[null,{"$f":"IF(Intern!$A$5=1,C36,IF(Intern!$A$5=2,D36,E36))","v":"Wohnbebauung"},"Wohnbebauung","New residential area","Budownictwo mieszkaniowe"]
[null,{"$f":"IF(Intern!$A$5=1,C37,IF(Intern!$A$5=2,D37,E37))","v":"Krankenhaus"},"Krankenhaus","Hospital","Szpital"]
[null,{"$f":"IF(Intern!$A$5=1,C38,IF(Intern!$A$5=2,D38,E38))","v":"Bäder"},"Bäder","Swimming pools","Baseny"]
[null,{"$f":"IF(Intern!$A$5=1,C39,IF(Intern!$A$5=2,D39,E39))","v":"Art des Objektes"},"Art des Objektes","Type of application","Rodzaj obiektu"]
[null,{"$f":"IF(Intern!$A$5=1,C40,IF(Intern!$A$5=2,D40,E40))","v":"Sonstiges:"},"Sonstiges:","Other:","Pozostałe:"]
[null,{"$f":"IF(Intern!$A$5=1,C41,IF(Intern!$A$5=2,D41,E41))","v":"Neubau"},"Neubau","New facility","Nowa budowa"]
[null,{"$f":"IF(Intern!$A$5=1,C42,IF(Intern!$A$5=2,D42,E42))","v":"Altbausanierung"},"Altbausanierung","Facility renovation","Renowacja"]
[null,{"$f":"IF(Intern!$A$5=1,C43,IF(Intern!$A$5=2,D43,E43))","v":"Maschinenraum vorhanden:"},"Maschinenraum vorhanden:","Machine room available:","Maszynownia istnieje:"]
[null,{"$f":"IF(Intern!$A$5=1,C44,IF(Intern!$A$5=2,D44,E44))","v":"Aufstellung in Container:"},"Aufstellung in Container:","Container set-up:","Instalacja w kontenerze:"]
[null,{"$f":"IF(Intern!$A$5=1,C45,IF(Intern!$A$5=2,D45,E45))","v":"Gewerbegebiet"},"Gewerbegebiet","Industrial park","Teren przemysłowy"]
[null,{"$f":"IF(Intern!$A$5=1,C46,IF(Intern!$A$5=2,D46,E46))","v":"Wohngebiet"},"Wohngebiet","Residential","Teren mieszkalny"]
[null,{"$f":"IF(Intern!$A$5=1,C47,IF(Intern!$A$5=2,D47,E47))","v":"Aufstellungsort der Anlage            (Land / Adresse)"},"Aufstellungsort der Anlage            (Land / Adresse)","Project location                   (country / address)","Lokalizacja urządzenia                                  (kraj/adres)"]
[null,{"$f":"IF(Intern!$A$5=1,C48,IF(Intern!$A$5=2,D48,E48))","v":"Projektzuordnung"},"Projektzuordnung","Project classification","Klasyfikacja projektu"]
[null,{"$f":"IF(Intern!$A$5=1,C49,IF(Intern!$A$5=2,D49,E49))","v":"Projektname / Kennwort:"},"Projektname / Kennwort:","Project name / codeword","Nazwa projektu / hasło"]
[null,{"$f":"IF(Intern!$A$5=1,C50,IF(Intern!$A$5=2,D50,E50))","v":"Ihre Projekt-Nr.:"},"Ihre Projekt-Nr.:","Your project number:","Państwa nr projektu:"]
[null,{"$f":"IF(Intern!$A$5=1,C51,IF(Intern!$A$5=2,D51,E51))","v":"Nahwärme"},"Nahwärme","District heating","Ogrzewanie lokalne"]
[null,{"$f":"IF(Intern!$A$5=1,C52,IF(Intern!$A$5=2,D52,E52))","v":"Deponie"},"Deponie","Landfill site","Wysypisko"]
[null,{"$f":"IF(Intern!$A$5=1,C53,IF(Intern!$A$5=2,D53,E53))","v":"Kläranlage"},"Kläranlage","Waste water treatment plant","Oczyszczalnia ścieków"]
[null,{"$f":"IF(Intern!$A$5=1,C54,IF(Intern!$A$5=2,D54,E54))","v":"Gewächshaus"},"Gewächshaus","Greenhouse","Szklarnia"]
[null,{"$f":"IF(Intern!$A$5=1,C55,IF(Intern!$A$5=2,D55,E55))","v":"Grube"},"Grube","Coal-mine","Kopalnia"]
[null,{"$f":"IF(Intern!$A$5=1,C56,IF(Intern!$A$5=2,D56,E56))","v":"Energiebedarf"},"Energiebedarf","Power and heat demand","Zapotrzebowanie na energię"]
[null,{"$f":"IF(Intern!$A$5=1,C57,IF(Intern!$A$5=2,D57,E57))","v":"Benötigte elektrische Leistung"},"Benötigte elektrische Leistung","Required electric power","Wymagana moc elektryczna"]
[null,{"$f":"IF(Intern!$A$5=1,C58,IF(Intern!$A$5=2,D58,E58))","v":"Benötigte Wärmeleistung"},"Benötigte Wärmeleistung","Required thermal power","Wymagana moc cieplna"]
[null,{"$f":"IF(Intern!$A$5=1,C59,IF(Intern!$A$5=2,D59,E59))","v":"Priorität:"},"Priorität:","Priority:","Priorytet:"]
[null,{"$f":"IF(Intern!$A$5=1,C60,IF(Intern!$A$5=2,D60,E60))","v":"Strom"},"Strom","Electricity","Energia elektryczna"]
[null,{"$f":"IF(Intern!$A$5=1,C61,IF(Intern!$A$5=2,D61,E61))","v":"Wärme"},"Wärme","Heat","Energia cieplna"]
[null,{"$f":"IF(Intern!$A$5=1,C62,IF(Intern!$A$5=2,D62,E62))","v":"Spannungsebene der Einspeisung"},"Spannungsebene der Einspeisung","Grid voltage","Napięcie sieci"]
[null,{"$f":"IF(Intern!$A$5=1,C63,IF(Intern!$A$5=2,D63,E63))","v":"Frequenz des Stromnetzes"},"Frequenz des Stromnetzes","Grid frequency","Częstotliwość sieci"]
[null,{"$f":"IF(Intern!$A$5=1,C64,IF(Intern!$A$5=2,D64,E64))","v":"Max. Rücklauftemperatur (Heiznetz)"},"Max. Rücklauftemperatur (Heiznetz)","Max. return temperatur (heating net)","Max. temperatura powrotu (sieć grzewcza)"]
[null,{"$f":"IF(Intern!$A$5=1,C65,IF(Intern!$A$5=2,D65,E65))","v":"Max. Vorlauftemperatur (Heiznetz)"},"Max. Vorlauftemperatur (Heiznetz)","Max. supply temperatur (heating net)","Max. temperatura zasilania (sieć grzewcza)"]
[null,{"$f":"IF(Intern!$A$5=1,C66,IF(Intern!$A$5=2,D66,E66))","v":"Angaben bei Dampfbedarf:"},"Angaben bei Dampfbedarf:","Specifications of the steam requirement:","Dane przy zapotrzebowaniu na parę:"]
[null,{"$f":"IF(Intern!$A$5=1,C67,IF(Intern!$A$5=2,D67,E67))","v":"Benötigte Sattdampfmenge"},"Benötigte Sattdampfmenge","Required saturated steam mass flow","Wymagana ilość pary nasyconej"]
[null,{"$f":"IF(Intern!$A$5=1,C68,IF(Intern!$A$5=2,D68,E68))","v":"Sattdampfdruck (abs.)"},"Sattdampfdruck (abs.)","Saturated steam pressure (abs.)","Ciśnienie pary nasyconej  (abs.)"]
[null,{"$f":"IF(Intern!$A$5=1,C69,IF(Intern!$A$5=2,D69,E69))","v":"Sattdampftemperatur"},"Sattdampftemperatur","Saturated steam temperature","Temperatura pary nasyconej"]
[null,{"$f":"IF(Intern!$A$5=1,C70,IF(Intern!$A$5=2,D70,E70))","v":"Speisewassertemperatur"},"Speisewassertemperatur","Feed water temperature","Temperatura wody zasilającej"]
[null,{"$f":"IF(Intern!$A$5=1,C71,IF(Intern!$A$5=2,D71,E71))","v":"Aufstellbedingungen und Betriebsweise"},"Aufstellbedingungen und Betriebsweise","Site conditions and operation mode","Warunki ustawienia i tryb pracy"]
[null,{"$f":"IF(Intern!$A$5=1,C72,IF(Intern!$A$5=2,D72,E72))","v":"Aufstellhöhe"},"Aufstellhöhe","Site altitude","Wysokość ustawienia"]
[null,{"$f":"IF(Intern!$A$5=1,C73,IF(Intern!$A$5=2,D73,E73))","v":"Umgebungstemperatur"},"Umgebungstemperatur","Site ambient air temperature","Temperatura otoczenia"]
[null,{"$f":"IF(Intern!$A$5=1,C74,IF(Intern!$A$5=2,D74,E74))","v":"Maschinenraumtemperatur"},"Maschinenraumtemperatur","Machine room air temperature","Temperatura w maszynowni"]
[null,{"$f":"IF(Intern!$A$5=1,C75,IF(Intern!$A$5=2,D75,E75))","v":"Relative Luftfeuchte"},"Relative Luftfeuchte","Air relative humidity","Relatywna wilogotność powietrza"]
[null,{"$f":"IF(Intern!$A$5=1,C76,IF(Intern!$A$5=2,D76,E76))","v":"Zulässige Abgasemissionen:"},"Zulässige Abgasemissionen:","Max. allowable exhaust emissions:","Dopuszczalna emisja spalin:"]
[null,{"$f":"IF(Intern!$A$5=1,C77,IF(Intern!$A$5=2,D77,E77))","v":"gemäß aktueller TA-Luft"},"gemäß aktueller TA-Luft","in compliance with current TA-Luft","zgodnie z aktualnym TA-Luft"]
[null,{"$f":"IF(Intern!$A$5=1,C78,IF(Intern!$A$5=2,D78,E78))","v":"oder abweichend:"},"oder abweichend:","or other:","lub inaczej:"]
[null,{"$f":"IF(Intern!$A$5=1,C79,IF(Intern!$A$5=2,D79,E79))","v":"NOx"},"NOx","NOx","Nox"]
[null,{"$f":"IF(Intern!$A$5=1,C80,IF(Intern!$A$5=2,D80,E80))","v":"CO"},"CO","CO","CO"]
[null,{"$f":"IF(Intern!$A$5=1,C81,IF(Intern!$A$5=2,D81,E81))","v":"NMHC"},"NMHC","NMHC","NMHC"]
[null,{"$f":"IF(Intern!$A$5=1,C82,IF(Intern!$A$5=2,D82,E82))","v":"Werte beziehen sich auf trockenes Abgas und 5% O2"},"Werte beziehen sich auf trockenes Abgas und 5% O2","Values corresponding to dry exhaust gas with 5% O2","Wartości dotyczą spalin suchych i 5% O2"]
[null,{"$f":"IF(Intern!$A$5=1,C83,IF(Intern!$A$5=2,D83,E83))","v":"(Deutschland)"},"(Deutschland)","(Germany)","(Niemcy)"]
[null,{"$f":"IF(Intern!$A$5=1,C84,IF(Intern!$A$5=2,D84,E84))","v":"Zulässige Schallemissionen:"},"Zulässige Schallemissionen:","Allowable noise emissions:","Dopuszczalne emisje hałasu:"]
[null,{"$f":"IF(Intern!$A$5=1,C85,IF(Intern!$A$5=2,D85,E85))","v":"Max. zulässiger Schalldruckpegel"},"Max. zulässiger Schalldruckpegel","Max. allowable sound pressure level","Max. dopuszczalny poziom ciśnienia akustycznego"]
[null,{"$f":"IF(Intern!$A$5=1,C86,IF(Intern!$A$5=2,D86,E86))","v":"in"},"in","at","w odległości"]
[null,{"$f":"IF(Intern!$A$5=1,C87,IF(Intern!$A$5=2,D87,E87))","v":"Meter"},"Meter","metres","metrów"]
[null,{"$f":"IF(Intern!$A$5=1,C88,IF(Intern!$A$5=2,D88,E88))","v":"Betriebsart:"},"Betriebsart:","Operation mode:","Rodzaj pracy:"]
[null,{"$f":"IF(Intern!$A$5=1,C89,IF(Intern!$A$5=2,D89,E89))","v":"Netzparallelbetrieb"},"Netzparallelbetrieb","Mains parallel operation mode","Praca równoległa z siecią"]
[null,{"$f":"IF(Intern!$A$5=1,C90,IF(Intern!$A$5=2,D90,E90))","v":"Inselbetrieb"},"Inselbetrieb","Off-grid operation mode","Praca wyspowa"]
[null,{"$f":"IF(Intern!$A$5=1,C91,IF(Intern!$A$5=2,D91,E91))","v":"Ersatzstrombetrieb"},"Ersatzstrombetrieb","Standby operation mode","Praca przy zasilaniu zastępczym"]
[null,{"$f":"IF(Intern!$A$5=1,C92,IF(Intern!$A$5=2,D92,E92))","v":"Bei Ersatzstrombetrieb: max. größter aufzuschaltender Verbraucher"},"Bei Ersatzstrombetrieb: max. größter aufzuschaltender Verbraucher","For standby operation mode: biggest elec. load to be connected","W wypadku pracy przy zasilaniu zastęczym: max. największy odbiornik do podłączenia"]
[null,{"$f":"IF(Intern!$A$5=1,C93,IF(Intern!$A$5=2,D93,E93))","v":"(Bitte Aufschaltleistung angeben - nicht Nennleistung)"},"(Bitte Aufschaltleistung angeben - nicht Nennleistung)","(please indicate startup load - not nominal load)","(Proszę podać moc załączeniową - nie nominalną)"]
[null,{"$f":"IF(Intern!$A$5=1,C94,IF(Intern!$A$5=2,D94,E94))","v":"Brenngas"},"Brenngas","Combustion gas","Gaz palny"]
[null,{"$f":"IF(Intern!$A$5=1,C95,IF(Intern!$A$5=2,D95,E95))","v":"Erdgas mit MZ 70"},"Erdgas mit MZ 70","Natural gas (methane number MN=70)","Gaz ziemny (liczba metanowa 70)"]
[null,{"$f":"IF(Intern!$A$5=1,C96,IF(Intern!$A$5=2,D96,E96))","v":"Erdgas mit MZ 80"},"Erdgas mit MZ 80","Natural gas (methane number MN=80)","Gaz ziemny (liczba metanowa 80)"]
[null,{"$f":"IF(Intern!$A$5=1,C97,IF(Intern!$A$5=2,D97,E97))","v":"Erdgas mit MZ 90"},"Erdgas mit MZ 90","Natural gas (methane number MN=90)","Gaz ziemny (liczba metanowa 90)"]
[null,{"$f":"IF(Intern!$A$5=1,C98,IF(Intern!$A$5=2,D98,E98))","v":"Deponiegas (50% CH4, 27% CO2, Rest N2)"},"Deponiegas (50% CH4, 27% CO2, Rest N2)","Landfill gas (50% CH4, 27% CO2, remain N2)","Gaz wysypiskowy (50% CH4, 27% CO2, reszta N2)"]
[null,{"$f":"IF(Intern!$A$5=1,C99,IF(Intern!$A$5=2,D99,E99))","v":"Klärgas (65% CH4, 35% CO2)"},"Klärgas (65% CH4, 35% CO2)","Sewage gas (65% CH4, 35% CO2)","Gaz z oczyszczalni ścieków (65% CH4, 35% CO2)"]
[null,{"$f":"IF(Intern!$A$5=1,C100,IF(Intern!$A$5=2,D100,E100))","v":"Biogas"},"Biogas","Bio gas","Biogaz"]
[null,{"$f":"IF(Intern!$A$5=1,C101,IF(Intern!$A$5=2,D101,E101))","v":"Grubengas"},"Grubengas","Mine gas","Gaz kopalniany"]
[null,{"$f":"IF(Intern!$A$5=1,C102,IF(Intern!$A$5=2,D102,E102))","v":"Kokereigas"},"Kokereigas","Coke oven gas","Gaz koksowniczy"]
[null,{"$f":"IF(Intern!$A$5=1,C103,IF(Intern!$A$5=2,D103,E103))","v":"Erdölbegleitgas"},"Erdölbegleitgas","Wellhead gas","Gaz towarzyszący odwiertom ropy"]
[null,{"$f":"IF(Intern!$A$5=1,C104,IF(Intern!$A$5=2,D104,E104))","v":"Sonstiges Gas"},"Sonstiges Gas","Other","Inny gaz"]
[null,{"$f":"IF(Intern!$A$5=1,C105,IF(Intern!$A$5=2,D105,E105))","v":"Bitte unbedingt Gasanalyse bzw. Gaszusammensetzung der Anfrage beifügen oder im folgenden Feld eintragen!"},"Bitte unbedingt Gasanalyse bzw. Gaszusammensetzung der Anfrage beifügen oder im folgenden Feld eintragen!","Please attach a gas analysis (or the gas composition) or type it below!","Proszę koniecznie dołączyć lub podać w następnym polu analizę gazu lub skład gazu"]
[null,{"$f":"IF(Intern!$A$5=1,C106,IF(Intern!$A$5=2,D106,E106))","v":"Gasfließdruck:"},"Gasfließdruck:","Gas pressure:","Ciśnienie gazu:"]
[null,{"$f":"IF(Intern!$A$5=1,C107,IF(Intern!$A$5=2,D107,E107))","v":"Zweigasbetrieb:"},"Zweigasbetrieb:","Dual-gas operation:","Praca na dwóch gazach:"]
[null,{"$f":"IF(Intern!$A$5=1,C108,IF(Intern!$A$5=2,D108,E108))","v":"Liefer- und Leistungsumfang"},"Liefer- und Leistungsumfang","Scope of supply and services","Zakres dostawy i usług"]
[null,{"$f":"IF(Intern!$A$5=1,C109,IF(Intern!$A$5=2,D109,E109))","v":"Grundlieferumfang Aggregat inkl. TEM EVO Steuerung und Nulldruck-Gasregelstrecke"},"Grundlieferumfang Aggregat inkl. TEM EVO Steuerung und Nulldruck-Gasregelstrecke","Genset basic scope of supply including TEM EVO electronic control and gas pressure regulating unit","Podstawowy zakres dostawy agregat łącznie z TEM EVO sterowaniem i zerociśnieniowym odcinkiem regulacji gazu"]
[null,{"$f":"IF(Intern!$A$5=1,C110,IF(Intern!$A$5=2,D110,E110))","v":"Startanlage (Batterien / Druckluftanlage je nach Motortyp)"},"Startanlage (Batterien / Druckluftanlage je nach Motortyp)","Engine starter (electric or pneumatic type depending on engine type)","Instalacja startowa (baterie lub urządzenie pneumatyczne w zależności od typu silnika)"]
[null,{"$f":"IF(Intern!$A$5=1,C111,IF(Intern!$A$5=2,D111,E111))","v":"Wärmeverwertung (Komponentenlieferung: Pumpen, Wärmetauscher, Tischkühler, Ventile und Geber)"},"Wärmeverwertung (Komponentenlieferung: Pumpen, Wärmetauscher, Tischkühler, Ventile und Geber)","Heat recovery (incl.: pumps, exhaust gas heat exchanger, air-cooled heat exchanger ,valves and sensors)","Odzysk ciepła (dostawa komponentów: pompy, wymiennik ciepła, chłodnica stołowa, zawory i czujniki)"]
[null,{"$f":"IF(Intern!$A$5=1,C112,IF(Intern!$A$5=2,D112,E112))","v":"Abgassystem (Komponentenlieferung: Abgasschalldämpfer, Katalysator bei Bedarf, Geber)"},"Abgassystem (Komponentenlieferung: Abgasschalldämpfer, Katalysator bei Bedarf, Geber)","Exhaust gas system (including: exhaust gas silencer, catalytic converter - if required, sensors)","System spalinowy (dostawa komponentów: tłumik spalin, katalizator - jeśli potrzeba, czujniki)"]
[null,{"$f":"IF(Intern!$A$5=1,C113,IF(Intern!$A$5=2,D113,E113))","v":"Schmierölanlage (Komponentenlieferung: Alt- und Frischöltank, Pumpe, Geber)"},"Schmierölanlage (Komponentenlieferung: Alt- und Frischöltank, Pumpe, Geber)","Engine lubrication unit (including: tanks for lubricating oil and waste oil, pump, sensors)","Instalacja oleju smarnego (dostawa komponentów: zbiornik oleju zużytego, zbiornik oleju świeżego, pompa, czujniki)"]
[null,{"$f":"IF(Intern!$A$5=1,C114,IF(Intern!$A$5=2,D114,E114))","v":"Lüftungsanlage (Komponentenlieferung inkl. Montage)"},"Lüftungsanlage (Komponentenlieferung inkl. Montage)","Ventilation unit (including its installation)","Wentylacja (dostawa komponentów łącznie z montażem)"]
[null,{"$f":"IF(Intern!$A$5=1,C115,IF(Intern!$A$5=2,D115,E115))","v":"Containermontage"},"Containermontage","Container genset","Montaż kontenera"]
[null,{"$f":"IF(Intern!$A$5=1,C116,IF(Intern!$A$5=2,D116,E116))","v":"Schaltanlage - Hilfsantriebeschrank"},"Schaltanlage - Hilfsantriebeschrank","Switching system - Switchgear cabinet","Rozdzielnica - szafa napędów pomocniczych"]
[null,{"$f":"IF(Intern!$A$5=1,C117,IF(Intern!$A$5=2,D117,E117))","v":"Schaltanlage - Leistungsteil"},"Schaltanlage - Leistungsteil","Switching system - Power panel","Rozdzielnica - zespół mocy"]
[null,{"$f":"IF(Intern!$A$5=1,C118,IF(Intern!$A$5=2,D118,E118))","v":"Schaltanlage - Zentrale Anlagensteuerung"},"Schaltanlage - Zentrale Anlagensteuerung","Switching system - Central system control","Rozdzielnica - centralne sterowanie instalacją"]
[null,{"$f":"IF(Intern!$A$5=1,C119,IF(Intern!$A$5=2,D119,E119))","v":"Rohrleitungsmontage und Isolierung"},"Rohrleitungsmontage und Isolierung","Pipework and insulation","Montaż rurociągów i izolacja"]
[null,{"$f":"IF(Intern!$A$5=1,C120,IF(Intern!$A$5=2,D120,E120))","v":"Verkabelung von Leistungs- und Steuerkabel"},"Verkabelung von Leistungs- und Steuerkabel","Power and control wiring","Okablowanie - kabel mocy i sterowania"]
[null,{"$f":"IF(Intern!$A$5=1,C121,IF(Intern!$A$5=2,D121,E121))","v":"Lieferbedingungen:"},"Lieferbedingungen:","Delivery conditions:","Warunki dostawy:"]
[null,{"$f":"IF(Intern!$A$5=1,C122,IF(Intern!$A$5=2,D122,E122))","v":"ex-works"},"ex-works","ex-works","ex-works"]
[null,{"$f":"IF(Intern!$A$5=1,C123,IF(Intern!$A$5=2,D123,E123))","v":"Seeverpackung"},"Seeverpackung","Packing for sea transport","Opakowanie dla transportu morskiego"]
[null,{"$f":"IF(Intern!$A$5=1,C124,IF(Intern!$A$5=2,D124,E124))","v":"Schlussbemerkung"},"Schlussbemerkung","Final remarks","Uwagi końcowe"]
[null,{"$f":"IF(Intern!$A$5=1,C125,IF(Intern!$A$5=2,D125,E125))","v":"Bitte legen Sie dieser Anfrage eventuell verfügbare Gebäudepläne, RI-Schematas, Single Line Diagramme etc. bei. Wir können Ihnen dann ein entsprechend auf Ihre Erfordernisse optimiertes Angebot erstellen. Vielen Dank für Ihre Anfrage."},"Bitte legen Sie dieser Anfrage eventuell verfügbare Gebäudepläne, RI-Schematas, Single Line Diagramme etc. bei. Wir können Ihnen dann ein entsprechend auf Ihre Erfordernisse optimiertes Angebot erstellen. Vielen Dank für Ihre Anfrage.","Please attach to this form other available information such as building layouts, hydraulic schemes, single line diagrams, etc. We will be then able to prepare the offer that best suits your needs. Thank you very much for your request.","Proszę dołączyć dostępne plany budynków, schematy ideowe, schematy jednoliniowe itp. Wówczas będziemy mogli przygotować dla Państwa najbardziej odpowiednią ofertę. Dziękujemy za Państwa zapytanie."]
[null,{"$f":"IF(Intern!$A$5=1,C126,IF(Intern!$A$5=2,D126,E126))","v":"Gaszusammensetzung:"},"Gaszusammensetzung:","Combustion gas composition:","Skład gazu:"]
[null,{"$f":"IF(Intern!$A$5=1,C127,IF(Intern!$A$5=2,D127,E127))","v":"Firmenstempel"},"Firmenstempel","Company stamp","Stempel firmowy"]
[null,{"$f":"IF(Intern!$A$5=1,C128,IF(Intern!$A$5=2,D128,E128))","v":"Datum:"},"Datum:","Date:","Data:"]
[null,{"$f":"IF(Intern!$A$5=1,C129,IF(Intern!$A$5=2,D129,E129))","v":"Unterschrift:"},"Unterschrift:","Signature:","Podpis:"]
[null,{"$f":"IF(Intern!$A$5=1,C130,IF(Intern!$A$5=2,D130,E130))","v":"Bemerkung:"},"Bemerkung:","Notice:","Uwaga:"]
[null,{"$f":"IF(Intern!$A$5=1,C131,IF(Intern!$A$5=2,D131,E131))","v":"Besondere Wünsche und Anforderungen bitte separat dieser Anfrage beifügen."},"Besondere Wünsche und Anforderungen bitte separat dieser Anfrage beifügen.","Please attach to this form other special requirements and wishes.","Specjalne wymagania i życzenia proszę oddzielnie dołączyć do zapytania."]
[null,{"$f":"IF(Intern!$A$5=1,C132,IF(Intern!$A$5=2,D132,E132))","v":"Sprachauswahl"},"Sprachauswahl","Language selection","Wybór języka"]
[null,{"$f":"IF(Intern!$A$5=1,C133,IF(Intern!$A$5=2,D133,E133))","v":"Anfrage ausdrucken"},"Anfrage ausdrucken","Print form","Drukuj zapytanie"]
[null,{"$f":"IF(Intern!$A$5=1,C134,IF(Intern!$A$5=2,D134,E134))","v":"Zum Seitenanfang"},"Zum Seitenanfang","Top","Do góry strony"]
[null,{"$f":"IF(Intern!$A$5=1,C135,IF(Intern!$A$5=2,D135,E135))","v":"Zusatzblatt für weitere Angaben, Wünsche und Anforderungen"},"Zusatzblatt für weitere Angaben, Wünsche und Anforderungen","Additional sheet for other requests and wishes","Dodatkowy arkusz na inne dane, wymogi i życzenia"]
[null,{"$f":"IF(Intern!$A$5=1,C136,IF(Intern!$A$5=2,D136,E136))","v":"Angebotsfragebogen - Zusatzblatt"},"Angebotsfragebogen - Zusatzblatt","Offer request form - additional page","Kwestionariusz zapytania ofertowego - dadatkowy arkusz"]
[null,{"$f":"IF(Intern!$A$5=1,C137,IF(Intern!$A$5=2,D137,E137))","v":"Raum für weitere Informationen"},"Raum für weitere Informationen","Additional information","Dodatkowe informacje"]
[null,{"$f":"IF(Intern!$A$5=1,C138,IF(Intern!$A$5=2,D138,E138))","v":"Zum Fragebogen"},"Zum Fragebogen","Back to offer request form","Powrót do zapytania"]
[null,{"$f":"IF(Intern!$A$5=1,C139,IF(Intern!$A$5=2,D139,E139))","v":"Zusatzblatt ausdrucken"},"Zusatzblatt ausdrucken","Print additional page","Drukuj dodatkowy arkusz"]
[null,{"$f":"IF(Intern!$A$5=1,C140,IF(Intern!$A$5=2,D140,E140))","v":"m.ü.NN"},"m.ü.NN","m. asl","m n.p.m."]
[null,{"$f":"IF(Intern!$A$5=1,C141,IF(Intern!$A$5=2,D141,E141))","v":0}]
[null,{"$f":"IF(Intern!$A$5=1,C142,IF(Intern!$A$5=2,D142,E142))","v":0}]
[null,{"$f":"IF(Intern!$A$5=1,C143,IF(Intern!$A$5=2,D143,E143))","v":0}]
[null,{"$f":"IF(Intern!$A$5=1,C144,IF(Intern!$A$5=2,D144,E144))","v":0}]
[null,{"$f":"IF(Intern!$A$5=1,C145,IF(Intern!$A$5=2,D145,E145))","v":0}]
[null,{"$f":"IF(Intern!$A$5=1,C146,IF(Intern!$A$5=2,D146,E146))","v":0}]
[null,{"$f":"IF(Intern!$A$5=1,C147,IF(Intern!$A$5=2,D147,E147))","v":0}]
[null,{"$f":"IF(Intern!$A$5=1,C148,IF(Intern!$A$5=2,D148,E148))","v":0}]
[null,{"$f":"IF(Intern!$A$5=1,C149,IF(Intern!$A$5=2,D149,E149))","v":0}]
[null,{"$f":"IF(Intern!$A$5=1,C150,IF(Intern!$A$5=2,D150,E150))","v":0}]
[null,{"$f":"IF(Intern!$A$5=1,C151,IF(Intern!$A$5=2,D151,E151))","v":0}]
[null,{"$f":"IF(Intern!$A$5=1,C152,IF(Intern!$A$5=2,D152,E152))","v":0}]
[null,{"$f":"IF(Intern!$A$5=1,C153,IF(Intern!$A$5=2,D153,E153))","v":0}]
[null,{"$f":"IF(Intern!$A$5=1,C154,IF(Intern!$A$5=2,D154,E154))","v":0}]
[null,{"$f":"IF(Intern!$A$5=1,C155,IF(Intern!$A$5=2,D155,E155))","v":0}]
[null,{"$f":"IF(Intern!$A$5=1,C156,IF(Intern!$A$5=2,D156,E156))","v":0}]
[null,{"$f":"IF(Intern!$A$5=1,C157,IF(Intern!$A$5=2,D157,E157))","v":0}]
[null,{"$f":"IF(Intern!$A$5=1,C158,IF(Intern!$A$5=2,D158,E158))","v":0}]
[null,{"$f":"IF(Intern!$A$5=1,C159,IF(Intern!$A$5=2,D159,E159))","v":0}]
[null,{"$f":"IF(Intern!$A$5=1,C160,IF(Intern!$A$5=2,D160,E160))","v":0}]
[null,{"$f":"IF(Intern!$A$5=1,C161,IF(Intern!$A$5=2,D161,E161))","v":0}]
[null,{"$f":"IF(Intern!$A$5=1,C162,IF(Intern!$A$5=2,D162,E162))","v":0}]
[null,{"$f":"IF(Intern!$A$5=1,C163,IF(Intern!$A$5=2,D163,E163))","v":0}]
[null,{"$f":"IF(Intern!$A$5=1,C164,IF(Intern!$A$5=2,D164,E164))","v":0}]
[null,{"$f":"IF(Intern!$A$5=1,C165,IF(Intern!$A$5=2,D165,E165))","v":0}]
[null,{"$f":"IF(Intern!$A$5=1,C166,IF(Intern!$A$5=2,D166,E166))","v":0}]
[null,{"$f":"IF(Intern!$A$5=1,C167,IF(Intern!$A$5=2,D167,E167))","v":0}]
[null,{"$f":"IF(Intern!$A$5=1,C168,IF(Intern!$A$5=2,D168,E168))","v":0}]
[null,{"$f":"IF(Intern!$A$5=1,C169,IF(Intern!$A$5=2,D169,E169))","v":0}]
[null,{"$f":"IF(Intern!$A$5=1,C170,IF(Intern!$A$5=2,D170,E170))","v":0}]
[null,{"$f":"IF(Intern!$A$5=1,C171,IF(Intern!$A$5=2,D171,E171))","v":0}]
[null,{"$f":"IF(Intern!$A$5=1,C172,IF(Intern!$A$5=2,D172,E172))","v":0}]
[null,{"$f":"IF(Intern!$A$5=1,C173,IF(Intern!$A$5=2,D173,E173))","v":0}]
[null,{"$f":"IF(Intern!$A$5=1,C174,IF(Intern!$A$5=2,D174,E174))","v":0}]
[null,{"$f":"IF(Intern!$A$5=1,C175,IF(Intern!$A$5=2,D175,E175))","v":0}]
[null,{"$f":"IF(Intern!$A$5=1,C176,IF(Intern!$A$5=2,D176,E176))","v":0}]
[null,{"$f":"IF(Intern!$A$5=1,C177,IF(Intern!$A$5=2,D177,E177))","v":0}]
[null,{"$f":"IF(Intern!$A$5=1,C178,IF(Intern!$A$5=2,D178,E178))","v":0}]
[null,{"$f":"IF(Intern!$A$5=1,C179,IF(Intern!$A$5=2,D179,E179))","v":0}]
[null,{"$f":"IF(Intern!$A$5=1,C180,IF(Intern!$A$5=2,D180,E180))","v":0}]
[null,{"$f":"IF(Intern!$A$5=1,C181,IF(Intern!$A$5=2,D181,E181))","v":0}]
[null,{"$f":"IF(Intern!$A$5=1,C182,IF(Intern!$A$5=2,D182,E182))","v":0}]
[null,{"$f":"IF(Intern!$A$5=1,C183,IF(Intern!$A$5=2,D183,E183))","v":0}]
[null,{"$f":"IF(Intern!$A$5=1,C184,IF(Intern!$A$5=2,D184,E184))","v":0}]
[null,{"$f":"IF(Intern!$A$5=1,C185,IF(Intern!$A$5=2,D185,E185))","v":0}]
[null,{"$f":"IF(Intern!$A$5=1,C186,IF(Intern!$A$5=2,D186,E186))","v":0}]
[null,{"$f":"IF(Intern!$A$5=1,C187,IF(Intern!$A$5=2,D187,E187))","v":0}]
[null,{"$f":"IF(Intern!$A$5=1,C188,IF(Intern!$A$5=2,D188,E188))","v":0}]
[null,{"$f":"IF(Intern!$A$5=1,C189,IF(Intern!$A$5=2,D189,E189))","v":0}]
[null,{"$f":"IF(Intern!$A$5=1,C190,IF(Intern!$A$5=2,D190,E190))","v":0}]
[null,{"$f":"IF(Intern!$A$5=1,C191,IF(Intern!$A$5=2,D191,E191))","v":0}]
[null,{"$f":"IF(Intern!$A$5=1,C192,IF(Intern!$A$5=2,D192,E192))","v":0}]
[null,{"$f":"IF(Intern!$A$5=1,C193,IF(Intern!$A$5=2,D193,E193))","v":0}]
[null,{"$f":"IF(Intern!$A$5=1,C194,IF(Intern!$A$5=2,D194,E194))","v":0}]
[null,{"$f":"IF(Intern!$A$5=1,C195,IF(Intern!$A$5=2,D195,E195))","v":0}]
[null,{"$f":"IF(Intern!$A$5=1,C196,IF(Intern!$A$5=2,D196,E196))","v":0}]
[null,{"$f":"IF(Intern!$A$5=1,C197,IF(Intern!$A$5=2,D197,E197))","v":0}]
[null,{"$f":"IF(Intern!$A$5=1,C198,IF(Intern!$A$5=2,D198,E198))","v":0}]
[null,{"$f":"IF(Intern!$A$5=1,C199,IF(Intern!$A$5=2,D199,E199))","v":0}]
[null,{"$f":"IF(Intern!$A$5=1,C200,IF(Intern!$A$5=2,D200,E200))","v":0}]
[null,{"$f":"IF(Intern!$A$5=1,C201,IF(Intern!$A$5=2,D201,E201))","v":0}]
[null,{"$f":"IF(Intern!$A$5=1,C202,IF(Intern!$A$5=2,D202,E202))","v":0}]
[null,{"$f":"IF(Intern!$A$5=1,C203,IF(Intern!$A$5=2,D203,E203))","v":0}]
[null,{"$f":"IF(Intern!$A$5=1,C204,IF(Intern!$A$5=2,D204,E204))","v":0}]
[null,{"$f":"IF(Intern!$A$5=1,C205,IF(Intern!$A$5=2,D205,E205))","v":0}]
[null,{"$f":"IF(Intern!$A$5=1,C206,IF(Intern!$A$5=2,D206,E206))","v":0}]
[null,{"$f":"IF(Intern!$A$5=1,C207,IF(Intern!$A$5=2,D207,E207))","v":0}]
[null,{"$f":"IF(Intern!$A$5=1,C208,IF(Intern!$A$5=2,D208,E208))","v":0}]
[null,{"$f":"IF(Intern!$A$5=1,C209,IF(Intern!$A$5=2,D209,E209))","v":0}]
[null,{"$f":"IF(Intern!$A$5=1,C210,IF(Intern!$A$5=2,D210,E210))","v":0}]
[null,{"$f":"IF(Intern!$A$5=1,C211,IF(Intern!$A$5=2,D211,E211))","v":0}]
[null,{"$f":"IF(Intern!$A$5=1,C212,IF(Intern!$A$5=2,D212,E212))","v":0}]
[null,{"$f":"IF(Intern!$A$5=1,C213,IF(Intern!$A$5=2,D213,E213))","v":0}]
[null,{"$f":"IF(Intern!$A$5=1,C214,IF(Intern!$A$5=2,D214,E214))","v":0}]
[null,{"$f":"IF(Intern!$A$5=1,C215,IF(Intern!$A$5=2,D215,E215))","v":0}]
[null,{"$f":"IF(Intern!$A$5=1,C216,IF(Intern!$A$5=2,D216,E216))","v":0}]
[null,{"$f":"IF(Intern!$A$5=1,C217,IF(Intern!$A$5=2,D217,E217))","v":0}]
[null,{"$f":"IF(Intern!$A$5=1,C218,IF(Intern!$A$5=2,D218,E218))","v":0}]
[null,{"$f":"IF(Intern!$A$5=1,C219,IF(Intern!$A$5=2,D219,E219))","v":0}]
[null,{"$f":"IF(Intern!$A$5=1,C220,IF(Intern!$A$5=2,D220,E220))","v":0}]
[null,{"$f":"IF(Intern!$A$5=1,C221,IF(Intern!$A$5=2,D221,E221))","v":0}]
[null,{"$f":"IF(Intern!$A$5=1,C222,IF(Intern!$A$5=2,D222,E222))","v":0}]
[null,{"$f":"IF(Intern!$A$5=1,C223,IF(Intern!$A$5=2,D223,E223))","v":0}]
[null,{"$f":"IF(Intern!$A$5=1,C224,IF(Intern!$A$5=2,D224,E224))","v":0}]
[null,{"$f":"IF(Intern!$A$5=1,C225,IF(Intern!$A$5=2,D225,E225))","v":0}]
[null,{"$f":"IF(Intern!$A$5=1,C226,IF(Intern!$A$5=2,D226,E226))","v":0}]
[null,{"$f":"IF(Intern!$A$5=1,C227,IF(Intern!$A$5=2,D227,E227))","v":0}]
[null,{"$f":"IF(Intern!$A$5=1,C228,IF(Intern!$A$5=2,D228,E228))","v":0}]
[null,{"$f":"IF(Intern!$A$5=1,C229,IF(Intern!$A$5=2,D229,E229))","v":0}]
[null,{"$f":"IF(Intern!$A$5=1,C230,IF(Intern!$A$5=2,D230,E230))","v":0}]
[null,{"$f":"IF(Intern!$A$5=1,C231,IF(Intern!$A$5=2,D231,E231))","v":0}]
[null,{"$f":"IF(Intern!$A$5=1,C232,IF(Intern!$A$5=2,D232,E232))","v":0}]
[null,{"$f":"IF(Intern!$A$5=1,C233,IF(Intern!$A$5=2,D233,E233))","v":0}]
[null,{"$f":"IF(Intern!$A$5=1,C234,IF(Intern!$A$5=2,D234,E234))","v":0}]
[null,{"$f":"IF(Intern!$A$5=1,C235,IF(Intern!$A$5=2,D235,E235))","v":0}]
[null,{"$f":"IF(Intern!$A$5=1,C236,IF(Intern!$A$5=2,D236,E236))","v":0}]
[null,{"$f":"IF(Intern!$A$5=1,C237,IF(Intern!$A$5=2,D237,E237))","v":0}]
[null,{"$f":"IF(Intern!$A$5=1,C238,IF(Intern!$A$5=2,D238,E238))","v":0}]
[null,{"$f":"IF(Intern!$A$5=1,C239,IF(Intern!$A$5=2,D239,E239))","v":0}]
[null,{"$f":"IF(Intern!$A$5=1,C240,IF(Intern!$A$5=2,D240,E240))","v":0}]
[null,{"$f":"IF(Intern!$A$5=1,C241,IF(Intern!$A$5=2,D241,E241))","v":0}]
[null,{"$f":"IF(Intern!$A$5=1,C242,IF(Intern!$A$5=2,D242,E242))","v":0}]
[null,{"$f":"IF(Intern!$A$5=1,C243,IF(Intern!$A$5=2,D243,E243))","v":0}]
[null,{"$f":"IF(Intern!$A$5=1,C244,IF(Intern!$A$5=2,D244,E244))","v":0}]
[null,{"$f":"IF(Intern!$A$5=1,C245,IF(Intern!$A$5=2,D245,E245))","v":0}]
[null,{"$f":"IF(Intern!$A$5=1,C246,IF(Intern!$A$5=2,D246,E246))","v":0}]
[null,{"$f":"IF(Intern!$A$5=1,C247,IF(Intern!$A$5=2,D247,E247))","v":0}]
[null,{"$f":"IF(Intern!$A$5=1,C248,IF(Intern!$A$5=2,D248,E248))","v":0}]
[null,{"$f":"IF(Intern!$A$5=1,C249,IF(Intern!$A$5=2,D249,E249))","v":0}]
[null,{"$f":"IF(Intern!$A$5=1,C250,IF(Intern!$A$5=2,D250,E250))","v":0}]
[null,{"$f":"IF(Intern!$A$5=1,C251,IF(Intern!$A$5=2,D251,E251))","v":0}]
[null,{"$f":"IF(Intern!$A$5=1,C252,IF(Intern!$A$5=2,D252,E252))","v":0}]
[null,{"$f":"IF(Intern!$A$5=1,C253,IF(Intern!$A$5=2,D253,E253))","v":0}]
[null,{"$f":"IF(Intern!$A$5=1,C254,IF(Intern!$A$5=2,D254,E254))","v":0}]
[null,{"$f":"IF(Intern!$A$5=1,C255,IF(Intern!$A$5=2,D255,E255))","v":0}]
[null,{"$f":"IF(Intern!$A$5=1,C256,IF(Intern!$A$5=2,D256,E256))","v":0}]
[null,{"$f":"IF(Intern!$A$5=1,C257,IF(Intern!$A$5=2,D257,E257))","v":0}]
[null,{"$f":"IF(Intern!$A$5=1,C258,IF(Intern!$A$5=2,D258,E258))","v":0}]
[null,{"$f":"IF(Intern!$A$5=1,C259,IF(Intern!$A$5=2,D259,E259))","v":0}]
[null,{"$f":"IF(Intern!$A$5=1,C260,IF(Intern!$A$5=2,D260,E260))","v":0}]
[null,{"$f":"IF(Intern!$A$5=1,C261,IF(Intern!$A$5=2,D261,E261))","v":0}]
[null,{"$f":"IF(Intern!$A$5=1,C262,IF(Intern!$A$5=2,D262,E262))","v":0}]
[null,{"$f":"IF(Intern!$A$5=1,C263,IF(Intern!$A$5=2,D263,E263))","v":0}]
[null,{"$f":"IF(Intern!$A$5=1,C264,IF(Intern!$A$5=2,D264,E264))","v":0}]
[null,{"$f":"IF(Intern!$A$5=1,C265,IF(Intern!$A$5=2,D265,E265))","v":0}]
[null,{"$f":"IF(Intern!$A$5=1,C266,IF(Intern!$A$5=2,D266,E266))","v":0}]
[null,{"$f":"IF(Intern!$A$5=1,C267,IF(Intern!$A$5=2,D267,E267))","v":0}]
[null,{"$f":"IF(Intern!$A$5=1,C268,IF(Intern!$A$5=2,D268,E268))","v":0}]
[null,{"$f":"IF(Intern!$A$5=1,C269,IF(Intern!$A$5=2,D269,E269))","v":0}]
[null,{"$f":"IF(Intern!$A$5=1,C270,IF(Intern!$A$5=2,D270,E270))","v":0}]
[null,{"$f":"IF(Intern!$A$5=1,C271,IF(Intern!$A$5=2,D271,E271))","v":0}]
[null,{"$f":"IF(Intern!$A$5=1,C272,IF(Intern!$A$5=2,D272,E272))","v":0}]
[null,{"$f":"IF(Intern!$A$5=1,C273,IF(Intern!$A$5=2,D273,E273))","v":0}]
[null,{"$f":"IF(Intern!$A$5=1,C274,IF(Intern!$A$5=2,D274,E274))","v":0}]
[null,{"$f":"IF(Intern!$A$5=1,C275,IF(Intern!$A$5=2,D275,E275))","v":0}]
[null,{"$f":"IF(Intern!$A$5=1,C276,IF(Intern!$A$5=2,D276,E276))","v":0}]
[null,{"$f":"IF(Intern!$A$5=1,C277,IF(Intern!$A$5=2,D277,E277))","v":0}]
[null,{"$f":"IF(Intern!$A$5=1,C278,IF(Intern!$A$5=2,D278,E278))","v":0}]
[null,{"$f":"IF(Intern!$A$5=1,C279,IF(Intern!$A$5=2,D279,E279))","v":0}]
[null,{"$f":"IF(Intern!$A$5=1,C280,IF(Intern!$A$5=2,D280,E280))","v":0}]
[null,{"$f":"IF(Intern!$A$5=1,C281,IF(Intern!$A$5=2,D281,E281))","v":0}]
[null,{"$f":"IF(Intern!$A$5=1,C282,IF(Intern!$A$5=2,D282,E282))","v":0}]
[null,{"$f":"IF(Intern!$A$5=1,C283,IF(Intern!$A$5=2,D283,E283))","v":0}]
[null,{"$f":"IF(Intern!$A$5=1,C284,IF(Intern!$A$5=2,D284,E284))","v":0}]
[null,{"$f":"IF(Intern!$A$5=1,C285,IF(Intern!$A$5=2,D285,E285))","v":0}]
[null,{"$f":"IF(Intern!$A$5=1,C286,IF(Intern!$A$5=2,D286,E286))","v":0}]
[null,{"$f":"IF(Intern!$A$5=1,C287,IF(Intern!$A$5=2,D287,E287))","v":0}]
[null,{"$f":"IF(Intern!$A$5=1,C288,IF(Intern!$A$5=2,D288,E288))","v":0}]
[null,{"$f":"IF(Intern!$A$5=1,C289,IF(Intern!$A$5=2,D289,E289))","v":0}]
[null,{"$f":"IF(Intern!$A$5=1,C290,IF(Intern!$A$5=2,D290,E290))","v":0}]
[null,{"$f":"IF(Intern!$A$5=1,C291,IF(Intern!$A$5=2,D291,E291))","v":0}]
[null,{"$f":"IF(Intern!$A$5=1,C292,IF(Intern!$A$5=2,D292,E292))","v":0}]
[null,{"$f":"IF(Intern!$A$5=1,C293,IF(Intern!$A$5=2,D293,E293))","v":0}]
[null,{"$f":"IF(Intern!$A$5=1,C294,IF(Intern!$A$5=2,D294,E294))","v":0}]
[null,{"$f":"IF(Intern!$A$5=1,C295,IF(Intern!$A$5=2,D295,E295))","v":0}]
[null,{"$f":"IF(Intern!$A$5=1,C296,IF(Intern!$A$5=2,D296,E296))","v":0}]
[null,{"$f":"IF(Intern!$A$5=1,C297,IF(Intern!$A$5=2,D297,E297))","v":0}]
[null,{"$f":"IF(Intern!$A$5=1,C298,IF(Intern!$A$5=2,D298,E298))","v":0}]
[null,{"$f":"IF(Intern!$A$5=1,C299,IF(Intern!$A$5=2,D299,E299))","v":0}]
[null,{"$f":"IF(Intern!$A$5=1,C300,IF(Intern!$A$5=2,D300,E300))","v":0}]
[null,{"$f":"IF(Intern!$A$5=1,C301,IF(Intern!$A$5=2,D301,E301))","v":0}]
[null,{"$f":"IF(Intern!$A$5=1,C302,IF(Intern!$A$5=2,D302,E302))","v":0}]
[null,{"$f":"IF(Intern!$A$5=1,C303,IF(Intern!$A$5=2,D303,E303))","v":0}]
[null,{"$f":"IF(Intern!$A$5=1,C304,IF(Intern!$A$5=2,D304,E304))","v":0}]
[null,{"$f":"IF(Intern!$A$5=1,C305,IF(Intern!$A$5=2,D305,E305))","v":0}]
[null,{"$f":"IF(Intern!$A$5=1,C306,IF(Intern!$A$5=2,D306,E306))","v":0}]
[null,{"$f":"IF(Intern!$A$5=1,C307,IF(Intern!$A$5=2,D307,E307))","v":0}]
[null,{"$f":"IF(Intern!$A$5=1,C308,IF(Intern!$A$5=2,D308,E308))","v":0}]
[null,{"$f":"IF(Intern!$A$5=1,C309,IF(Intern!$A$5=2,D309,E309))","v":0}]
[null,{"$f":"IF(Intern!$A$5=1,C310,IF(Intern!$A$5=2,D310,E310))","v":0}]
[null,{"$f":"IF(Intern!$A$5=1,C311,IF(Intern!$A$5=2,D311,E311))","v":0}]
[null,{"$f":"IF(Intern!$A$5=1,C312,IF(Intern!$A$5=2,D312,E312))","v":0}]
[null,{"$f":"IF(Intern!$A$5=1,C313,IF(Intern!$A$5=2,D313,E313))","v":0}]
[null,{"$f":"IF(Intern!$A$5=1,C314,IF(Intern!$A$5=2,D314,E314))","v":0}]
[null,{"$f":"IF(Intern!$A$5=1,C315,IF(Intern!$A$5=2,D315,E315))","v":0}]
[null,{"$f":"IF(Intern!$A$5=1,C316,IF(Intern!$A$5=2,D316,E316))","v":0}]
[null,{"$f":"IF(Intern!$A$5=1,C317,IF(Intern!$A$5=2,D317,E317))","v":0}]
[null,{"$f":"IF(Intern!$A$5=1,C318,IF(Intern!$A$5=2,D318,E318))","v":0}]
[null,{"$f":"IF(Intern!$A$5=1,C319,IF(Intern!$A$5=2,D319,E319))","v":0}]
[null,{"$f":"IF(Intern!$A$5=1,C320,IF(Intern!$A$5=2,D320,E320))","v":0}]
[null,{"$f":"IF(Intern!$A$5=1,C321,IF(Intern!$A$5=2,D321,E321))","v":0}]
[null,{"$f":"IF(Intern!$A$5=1,C322,IF(Intern!$A$5=2,D322,E322))","v":0}]
[null,{"$f":"IF(Intern!$A$5=1,C323,IF(Intern!$A$5=2,D323,E323))","v":0}]
[null,{"$f":"IF(Intern!$A$5=1,C324,IF(Intern!$A$5=2,D324,E324))","v":0}]
[null,{"$f":"IF(Intern!$A$5=1,C325,IF(Intern!$A$5=2,D325,E325))","v":0}]
[null,{"$f":"IF(Intern!$A$5=1,C326,IF(Intern!$A$5=2,D326,E326))","v":0}]
[null,{"$f":"IF(Intern!$A$5=1,C327,IF(Intern!$A$5=2,D327,E327))","v":0}]
[null,{"$f":"IF(Intern!$A$5=1,C328,IF(Intern!$A$5=2,D328,E328))","v":0}]
[null,{"$f":"IF(Intern!$A$5=1,C329,IF(Intern!$A$5=2,D329,E329))","v":0}]
[null,{"$f":"IF(Intern!$A$5=1,C330,IF(Intern!$A$5=2,D330,E330))","v":0}]
[null,{"$f":"IF(Intern!$A$5=1,C331,IF(Intern!$A$5=2,D331,E331))","v":0}]
[null,{"$f":"IF(Intern!$A$5=1,C332,IF(Intern!$A$5=2,D332,E332))","v":0}]
[null,{"$f":"IF(Intern!$A$5=1,C333,IF(Intern!$A$5=2,D333,E333))","v":0}]
[null,{"$f":"IF(Intern!$A$5=1,C334,IF(Intern!$A$5=2,D334,E334))","v":0}]
[null,{"$f":"IF(Intern!$A$5=1,C335,IF(Intern!$A$5=2,D335,E335))","v":0}]
[null,{"$f":"IF(Intern!$A$5=1,C336,IF(Intern!$A$5=2,D336,E336))","v":0}]
[null,{"$f":"IF(Intern!$A$5=1,C337,IF(Intern!$A$5=2,D337,E337))","v":0}]
[null,{"$f":"IF(Intern!$A$5=1,C338,IF(Intern!$A$5=2,D338,E338))","v":0}]
[null,{"$f":"IF(Intern!$A$5=1,C339,IF(Intern!$A$5=2,D339,E339))","v":0}]
[null,{"$f":"IF(Intern!$A$5=1,C340,IF(Intern!$A$5=2,D340,E340))","v":0}]
[null,{"$f":"IF(Intern!$A$5=1,C341,IF(Intern!$A$5=2,D341,E341))","v":0}]
[null,{"$f":"IF(Intern!$A$5=1,C342,IF(Intern!$A$5=2,D342,E342))","v":0}]
[null,{"$f":"IF(Intern!$A$5=1,C343,IF(Intern!$A$5=2,D343,E343))","v":0}]
[null,{"$f":"IF(Intern!$A$5=1,C344,IF(Intern!$A$5=2,D344,E344))","v":0}]
[null,{"$f":"IF(Intern!$A$5=1,C345,IF(Intern!$A$5=2,D345,E345))","v":0}]
[null,{"$f":"IF(Intern!$A$5=1,C346,IF(Intern!$A$5=2,D346,E346))","v":0}]
[null,{"$f":"IF(Intern!$A$5=1,C347,IF(Intern!$A$5=2,D347,E347))","v":0}]
[null,{"$f":"IF(Intern!$A$5=1,C348,IF(Intern!$A$5=2,D348,E348))","v":0}]
[null,{"$f":"IF(Intern!$A$5=1,C349,IF(Intern!$A$5=2,D349,E349))","v":0}]
[null,{"$f":"IF(Intern!$A$5=1,C350,IF(Intern!$A$5=2,D350,E350))","v":0}]
[null,{"$f":"IF(Intern!$A$5=1,C351,IF(Intern!$A$5=2,D351,E351))","v":0}]
[null,{"$f":"IF(Intern!$A$5=1,C352,IF(Intern!$A$5=2,D352,E352))","v":0}]
[null,{"$f":"IF(Intern!$A$5=1,C353,IF(Intern!$A$5=2,D353,E353))","v":0}]
[null,{"$f":"IF(Intern!$A$5=1,C354,IF(Intern!$A$5=2,D354,E354))","v":0}]
[null,{"$f":"IF(Intern!$A$5=1,C355,IF(Intern!$A$5=2,D355,E355))","v":0}]
[null,{"$f":"IF(Intern!$A$5=1,C356,IF(Intern!$A$5=2,D356,E356))","v":0}]
[null,{"$f":"IF(Intern!$A$5=1,C357,IF(Intern!$A$5=2,D357,E357))","v":0}]
[null,{"$f":"IF(Intern!$A$5=1,C358,IF(Intern!$A$5=2,D358,E358))","v":0}]
[null,{"$f":"IF(Intern!$A$5=1,C359,IF(Intern!$A$5=2,D359,E359))","v":0}]
[null,{"$f":"IF(Intern!$A$5=1,C360,IF(Intern!$A$5=2,D360,E360))","v":0}]
[null,{"$f":"IF(Intern!$A$5=1,C361,IF(Intern!$A$5=2,D361,E361))","v":0}]
[null,{"$f":"IF(Intern!$A$5=1,C362,IF(Intern!$A$5=2,D362,E362))","v":0}]
[null,{"$f":"IF(Intern!$A$5=1,C363,IF(Intern!$A$5=2,D363,E363))","v":0}]
[null,{"$f":"IF(Intern!$A$5=1,C364,IF(Intern!$A$5=2,D364,E364))","v":0}]
[null,{"$f":"IF(Intern!$A$5=1,C365,IF(Intern!$A$5=2,D365,E365))","v":0}]
[null,{"$f":"IF(Intern!$A$5=1,C366,IF(Intern!$A$5=2,D366,E366))","v":0}]
[null,{"$f":"IF(Intern!$A$5=1,C367,IF(Intern!$A$5=2,D367,E367))","v":0}]
[null,{"$f":"IF(Intern!$A$5=1,C368,IF(Intern!$A$5=2,D368,E368))","v":0}]
[null,{"$f":"IF(Intern!$A$5=1,C369,IF(Intern!$A$5=2,D369,E369))","v":0}]
[null,{"$f":"IF(Intern!$A$5=1,C370,IF(Intern!$A$5=2,D370,E370))","v":0}]
[null,{"$f":"IF(Intern!$A$5=1,C371,IF(Intern!$A$5=2,D371,E371))","v":0}]
[null,{"$f":"IF(Intern!$A$5=1,C372,IF(Intern!$A$5=2,D372,E372))","v":0}]
[null,{"$f":"IF(Intern!$A$5=1,C373,IF(Intern!$A$5=2,D373,E373))","v":0}]
[null,{"$f":"IF(Intern!$A$5=1,C374,IF(Intern!$A$5=2,D374,E374))","v":0}]
[null,{"$f":"IF(Intern!$A$5=1,C375,IF(Intern!$A$5=2,D375,E375))","v":0}]
[null,{"$f":"IF(Intern!$A$5=1,C376,IF(Intern!$A$5=2,D376,E376))","v":0}]
[null,{"$f":"IF(Intern!$A$5=1,C377,IF(Intern!$A$5=2,D377,E377))","v":0}]
[null,{"$f":"IF(Intern!$A$5=1,C378,IF(Intern!$A$5=2,D378,E378))","v":0}]
[null,{"$f":"IF(Intern!$A$5=1,C379,IF(Intern!$A$5=2,D379,E379))","v":0}]
[null,{"$f":"IF(Intern!$A$5=1,C380,IF(Intern!$A$5=2,D380,E380))","v":0}]
[null,{"$f":"IF(Intern!$A$5=1,C381,IF(Intern!$A$5=2,D381,E381))","v":0}]
[null,{"$f":"IF(Intern!$A$5=1,C382,IF(Intern!$A$5=2,D382,E382))","v":0}]
[null,{"$f":"IF(Intern!$A$5=1,C383,IF(Intern!$A$5=2,D383,E383))","v":0}]
[null,{"$f":"IF(Intern!$A$5=1,C384,IF(Intern!$A$5=2,D384,E384))","v":0}]
[null,{"$f":"IF(Intern!$A$5=1,C385,IF(Intern!$A$5=2,D385,E385))","v":0}]
[null,{"$f":"IF(Intern!$A$5=1,C386,IF(Intern!$A$5=2,D386,E386))","v":0}]
[null,{"$f":"IF(Intern!$A$5=1,C387,IF(Intern!$A$5=2,D387,E387))","v":0}]
[null,{"$f":"IF(Intern!$A$5=1,C388,IF(Intern!$A$5=2,D388,E388))","v":0}]
[null,{"$f":"IF(Intern!$A$5=1,C389,IF(Intern!$A$5=2,D389,E389))","v":0}]
[null,{"$f":"IF(Intern!$A$5=1,C390,IF(Intern!$A$5=2,D390,E390))","v":0}]
[null,{"$f":"IF(Intern!$A$5=1,C391,IF(Intern!$A$5=2,D391,E391))","v":0}]
[null,{"$f":"IF(Intern!$A$5=1,C392,IF(Intern!$A$5=2,D392,E392))","v":0}]
[null,{"$f":"IF(Intern!$A$5=1,C393,IF(Intern!$A$5=2,D393,E393))","v":0}]
[null,{"$f":"IF(Intern!$A$5=1,C394,IF(Intern!$A$5=2,D394,E394))","v":0}]
[null,{"$f":"IF(Intern!$A$5=1,C395,IF(Intern!$A$5=2,D395,E395))","v":0}]
[null,{"$f":"IF(Intern!$A$5=1,C396,IF(Intern!$A$5=2,D396,E396))","v":0}]
[null,{"$f":"IF(Intern!$A$5=1,C397,IF(Intern!$A$5=2,D397,E397))","v":0}]
[null,{"$f":"IF(Intern!$A$5=1,C398,IF(Intern!$A$5=2,D398,E398))","v":0}]
[null,{"$f":"IF(Intern!$A$5=1,C399,IF(Intern!$A$5=2,D399,E399))","v":0}]
[null,{"$f":"IF(Intern!$A$5=1,C400,IF(Intern!$A$5=2,D400,E400))","v":0}]
[null,{"$f":"IF(Intern!$A$5=1,C401,IF(Intern!$A$5=2,D401,E401))","v":0}]
[null,{"$f":"IF(Intern!$A$5=1,C402,IF(Intern!$A$5=2,D402,E402))","v":0}]
[null,{"$f":"IF(Intern!$A$5=1,C403,IF(Intern!$A$5=2,D403,E403))","v":0}]
[null,{"$f":"IF(Intern!$A$5=1,C404,IF(Intern!$A$5=2,D404,E404))","v":0}]
[null,{"$f":"IF(Intern!$A$5=1,C405,IF(Intern!$A$5=2,D405,E405))","v":0}]
[null,{"$f":"IF(Intern!$A$5=1,C406,IF(Intern!$A$5=2,D406,E406))","v":0}]
[null,{"$f":"IF(Intern!$A$5=1,C407,IF(Intern!$A$5=2,D407,E407))","v":0}]
[null,{"$f":"IF(Intern!$A$5=1,C408,IF(Intern!$A$5=2,D408,E408))","v":0}]
[null,{"$f":"IF(Intern!$A$5=1,C409,IF(Intern!$A$5=2,D409,E409))","v":0}]
[null,{"$f":"IF(Intern!$A$5=1,C410,IF(Intern!$A$5=2,D410,E410))","v":0}]
[null,{"$f":"IF(Intern!$A$5=1,C411,IF(Intern!$A$5=2,D411,E411))","v":0}]
[null,{"$f":"IF(Intern!$A$5=1,C412,IF(Intern!$A$5=2,D412,E412))","v":0}]
[null,{"$f":"IF(Intern!$A$5=1,C413,IF(Intern!$A$5=2,D413,E413))","v":0}]
[null,{"$f":"IF(Intern!$A$5=1,C414,IF(Intern!$A$5=2,D414,E414))","v":0}]
[null,{"$f":"IF(Intern!$A$5=1,C415,IF(Intern!$A$5=2,D415,E415))","v":0}]
[null,{"$f":"IF(Intern!$A$5=1,C416,IF(Intern!$A$5=2,D416,E416))","v":0}]
[null,{"$f":"IF(Intern!$A$5=1,C417,IF(Intern!$A$5=2,D417,E417))","v":0}]
[null,{"$f":"IF(Intern!$A$5=1,C418,IF(Intern!$A$5=2,D418,E418))","v":0}]
[null,{"$f":"IF(Intern!$A$5=1,C419,IF(Intern!$A$5=2,D419,E419))","v":0}]
[null,{"$f":"IF(Intern!$A$5=1,C420,IF(Intern!$A$5=2,D420,E420))","v":0}]
[null,{"$f":"IF(Intern!$A$5=1,C421,IF(Intern!$A$5=2,D421,E421))","v":0}]

{"sheet":"Intern","index":3,"n_rows":7,"n_cols":3,"rows_kept":7,"cut":false,"hidden":true,"merged":[]}
[]
[]
[]
["Sprachauswahl"]
[1,"ENGLISCH","1 = Deutsch"]
[null,null,"2 = Englisch"]
[null,null,"3 = Polnisch"]